bitfinex-derivatives/quotes_SOLF0:USTF0_20250516
["timestamp","ask_amount","ask_price","bid_price","bid_amount"]
[1747399925628,5.7754,173.08,173.05,5.7761]
[1747399926425,5.7757,173.07,173.05,5.7761]
[1747399926622,119.32,173.09,173.01,59.66]
[1747399927127,5.7762,173.06,173.03,5.7769]
[1747399927931,5.7757,173.07,173.04,5.7765]
[1747399929030,5.7754,173.08,173.04,5.7765]
[1747399929232,119.32,173.09,173.04,5.7765]
[1747399929531,119.32,173.09,173.03,5.7769]
[1747399929727,5.7758,173.07,173.03,5.7769]
[1747399929920,59.66,173.09,172.99,63.4416]
[1747399930124,59.66,173.08,173.04,5.7762]
[1747399930320,65.4354,173.08,173.04,5.7762]
[1747399930632,59.66,173.08,172.99,63.4416]
[1747399930835,59.66,173.09,173.0,6.74264198]
[1747399931227,59.66,173.09,173.06,5.7756]
[1747399931434,59.66,173.09,173.02,59.66]
[1747399931834,65.4349,173.09,173.06,5.7756]
[1747399933228,119.3,173.12,173.03,59.64]
[1747399933433,59.66,173.12,173.03,59.64]
[1747399935237,59.66,173.12,173.02,59.66]
[1747399935432,5.7746,173.1,173.02,59.66]
[1747399935732,59.66,173.12,173.02,59.66]
[1747399936129,59.66,173.12,173.06,5.7756]
[1747399937137,5.7748,173.1,173.06,5.7756]
[1747399937330,59.66,173.12,173.06,5.7756]
[1747399937740,5.7747,173.1,173.07,5.7755]
[1747399937939,59.66,173.12,173.02,59.66]
[1747399938435,5.7743,173.11,173.08,5.775]
[1747399940239,5.7746,173.1,173.07,5.7754]
[1747399941842,5.7743,173.11,173.08,5.7752]
[1747399942037,59.66,173.12,173.02,59.66]
[1747399942734,5.7748,173.1,173.02,59.66]
[1747399943740,5.7748,173.1,173.08,5.7752]
[1747399943933,5.7743,173.11,173.08,5.7752]
[1747399944134,59.66,173.12,173.04,59.6]
[1747399944330,5.7732,173.14,173.05,6.74264198]
[1747399944628,5.7732,173.14,173.06,63.2793]
[1747399945342,5.7732,173.14,173.1,5.7743]
[1747399945848,5.7732,173.14,173.11,5.7742]
[1747399946044,65.4329,173.15,173.06,63.2793]
[1747399946245,59.66,173.15,173.06,63.2793]
[1747399946448,5.7733,173.14,173.11,5.774]
[1747399946638,59.66,173.15,173.06,63.2793]
[1747399946944,59.66,173.15,173.14,5.7732]
[1747399947149,59.58,173.17,173.14,5.7732]
[1747399947445,65.3524,173.17,173.14,5.7732]
[1747399947748,59.58,173.17,173.08,66.32264198]
[1747399947946,65.3525,173.17,173.08,66.32264198]
[1747399948147,59.64,173.18,173.08,66.32264198]
[1747399948348,59.64,173.18,173.14,5.7729]
[1747399948951,65.4121,173.18,173.15,2.08334625]
[1747399949144,65.4121,173.18,173.16,2.08334625]
[1747399949344,65.4121,173.18,173.17,2.08334625]
[1747399949654,59.64,173.18,173.17,7.85554625]
[1747399949842,59.58,173.2,173.17,7.85554625]
[1747399950147,59.58,173.2,173.18,2.08334625]
[1747399950345,59.58,173.2,173.17,5.7722]
[1747399951549,65.3514,173.2,173.17,5.7722]
[1747399952250,65.3514,173.2,173.16,5.7724]
[1747399952450,65.3514,173.2,173.17,2.07893068]
[1747399952639,59.58,173.2,173.13,1.9691]
[1747399952842,59.58,173.2,173.14,2.07890747]
[1747399953040,5.7739,173.12,173.07,1.9828]
[1747399953245,5.7739,173.12,173.08,2.07997279]
[1747399953447,5.7739,173.12,173.09,2.08016965]
[1747399953650,5.7742,173.11,173.1,2.08016965]
[1747399954049,119.2,173.15,173.1,2.08016965]
[1747399954255,5.7739,173.12,173.11,2.08016965]
[1747399954751,5.7739,173.12,173.11,2.08077998]
[1747399955254,119.2,173.15,173.06,5.7757]
[1747399955454,119.2,173.15,173.07,2.08112096]
[1747399955651,119.2,173.15,173.08,2.08112096]
[1747399955851,5.7747,173.1,173.09,2.08112096]
[1747399956951,119.1,173.11,173.09,2.08112096]
[1747399957153,119.1,173.11,173.1,2.08130366]
[1747399957454,124.8745,173.11,173.1,2.08130366]
[1747399957959,5.7752,173.09,173.05,5.7761]
[1747399958149,5.7752,173.09,173.06,2.07990715]
[1747399958350,5.7752,173.09,173.07,2.07990715]
[1747399958549,5.7747,173.1,173.08,2.07990715]
[1747399958756,5.7747,173.1,173.09,2.07990715]
[1747399958946,5.7747,173.1,173.09,2.07930744]
[1747399960856,5.7747,173.1,173.09,2.07942088]
[1747399962151,119.1,173.11,173.03,7.7197]
[1747399962350,119.1,173.11,173.04,2.08028462]
[1747399962555,119.1,173.11,173.05,2.08028462]
[1747399962749,119.1,173.11,173.06,2.08028462]
[1747399962956,6.74264198,173.07,172.96,1.9027]
[1747399963151,119.1,173.06,172.96,1.9027]
[1747399963554,119.1,173.06,172.97,1.9168]
[1747399963756,119.1,173.06,173.0,5.7776]
[1747399965055,5.7767,173.04,173.0,5.7776]
[1747399965659,5.7767,173.04,173.01,5.7775]
[1747399967164,5.7763,173.05,173.02,5.777]
[1747399967753,5.7763,173.05,173.01,5.7773]
[1747399967961,5.7765,173.04,173.01,5.7773]
[1747399968957,5.7763,173.05,173.01,5.7773]
[1747399969157,5.7763,173.05,173.02,5.7772]
[1747399970063,5.7763,173.05,173.01,5.7774]
[1747399970761,5.7766,173.04,173.01,5.7774]
[1747399970961,119.1,173.06,173.01,5.7774]
[1747399971358,5.7767,173.04,173.0,5.7778]
[1747399972363,5.7767,173.04,173.01,5.7774]
[1747399972865,5.7767,173.04,173.0,5.7777]
[1747399973167,5.7769,173.03,173.0,5.7777]
[1747399973360,5.7769,173.03,172.97,1.9168]
[1747399973559,5.7769,173.03,172.99,5.7781]
[1747399974067,5.7774,173.02,172.99,5.7781]
[1747399974565,5.7774,173.02,172.98,5.7784]
[1747399974765,119.1,173.06,172.96,1.9027]
[1747399975064,125.84264198,173.06,172.94,61.547]
[1747399975262,5.7785,172.99,172.95,5.7794]
[1747399975665,5.7785,172.99,172.96,5.7792]
[1747399976159,119.1,173.01,172.94,1.987]
[1747399976566,119.1,173.04,172.95,125.84264198]
[1747399976759,59.52,173.04,172.95,125.84264198]
[1747399977165,5.7772,173.03,172.95,125.84264198]
[1747399977465,59.52,173.04,172.95,125.84264198]
[1747399977664,5.7773,173.02,172.99,5.7779]
[1747399978970,5.7776,173.01,172.99,5.7779]
[1747399979170,59.52,173.04,172.95,59.58]
[1747399979561,5.7774,173.02,172.96,5.779]
[1747399979762,59.52,173.04,172.96,5.779]
[1747399980774,5.7782,173.0,172.96,5.779]
[1747399980963,59.52,173.04,172.96,5.779]
[1747399981363,5.7782,173.0,172.96,5.779]
[1747399981770,59.5,173.0,172.92,59.58]
[1747399981968,59.5,173.0,172.9,3.7264]
[1747399982270,66.24264198,173.0,172.9,9.5075]
[1747399982466,66.24264198,173.0,172.88,1.9736]
[1747399982979,5.7803,172.93,172.89,5.7812]
[1747399983177,119.1,172.94,172.88,1.9736]
[1747399983576,119.1,172.94,172.9,5.7812]
[1747399983876,119.1,172.94,172.88,1.9736]
[1747399984475,119.1,172.94,172.85,134.15541383]
[1747399984979,119.1,172.94,172.85,74.57541383]
[1747399985479,119.1,172.94,172.87,5.782]
[1747399986381,5.7811,172.91,172.87,5.782]
[1747399986576,5.7811,172.91,172.88,5.7819]
[1747399986778,5.7811,172.91,172.85,74.57541383]
[1747399987383,5.7806,172.92,172.88,5.7818]
[1747399987682,5.7806,172.92,172.85,74.57541383]
[1747399988376,5.7803,172.93,172.89,5.7813]
[1747399988576,119.1,172.94,172.85,74.57541383]
[1747399989077,119.1,172.94,172.91,5.7808]
[1747399989283,119.1,172.94,172.85,74.57541383]
[1747399989476,5.7793,172.96,172.92,5.7803]
[1747399990482,5.7793,172.96,172.87,66.26264198]
[1747399990683,5.7797,172.95,172.87,66.26264198]
[1747399990984,5.7797,172.95,172.91,5.7806]
[1747399991783,5.7797,172.95,172.92,5.7805]
[1747399992378,5.7794,172.96,172.92,5.7805]
[1747399992586,119.04,172.97,172.87,66.26264198]
[1747399992975,119.04,172.97,172.87,59.52]
[1747399993181,119.04,172.97,172.86,59.52]
[1747399993379,119.04,172.97,172.85,74.57541383]
[1747399993781,5.7811,172.91,172.85,74.57541383]
[1747399994686,5.7811,172.91,172.87,5.782]
[1747399995786,5.7813,172.9,172.86,5.7824]
[1747399996287,5.7817,172.89,172.85,1.8331]
[1747399997590,5.7817,172.89,172.86,5.7825]
[1747399999888,5.7813,172.9,172.87,5.7822]
[1747400000187,119.02,172.92,172.85,1.8331]
[1747400000389,124.8007,172.92,172.89,5.7815]
[1747400000888,119.02,172.92,172.85,1.8331]
[1747400001079,119.02,172.92,172.88,5.7818]
[1747400001486,119.02,172.92,172.87,5.7821]
[1747400001691,119.02,172.92,172.85,1.8331]
[1747400002391,119.02,172.92,172.85,7.6158]
[1747400003390,119.02,172.92,172.85,1.8331]
[1747400003693,119.02,172.92,172.82,1.9443]
[1747400003893,5.7828,172.86,172.82,1.9443]
[1747400004086,5.7828,172.86,172.82,7.728]
[1747400004395,5.7833,172.84,172.8,1.7971]
[1747400005591,5.7833,172.84,172.81,5.784]
[1747400005790,5.7829,172.85,172.81,5.784]
[1747400006094,59.5,172.87,172.81,5.784]
[1747400006292,5.7827,172.86,172.82,5.7838]
[1747400006493,59.5,172.87,172.8,1.7971]
[1747400006895,59.5,172.87,172.84,5.783]
[1747400007695,59.5,172.87,172.8,1.7971]
[1747400008294,59.54,172.89,172.81,6.74264198]
[1747400008492,59.48,172.88,172.82,1.9173]
[1747400008894,59.48,172.88,172.87,5.7822]
[1747400011901,59.54,172.89,172.88,5.7819]
[1747400012398,59.48,172.91,172.82,1.9173]
[1747400012898,59.48,172.91,172.9,5.7812]
[1747400014198,119.02,172.92,172.91,5.7809]
[1747400014399,59.54,172.92,172.91,5.7809]
[1747400024008,59.46,172.96,172.86,6.74264198]
[1747400024311,59.46,172.96,172.87,3.6191]
[1747400024514,59.46,172.96,172.94,5.7796]
[1747400024812,59.46,172.96,172.88,59.46]
[1747400025512,59.46,172.96,172.93,5.7801]
[1747400026012,65.2395,172.96,172.93,5.7801]
[1747400026407,59.46,172.96,172.91,5.7806]
[1747400026614,66.20264198,172.96,172.87,3.6191]
[1747400026913,66.20264198,172.96,172.88,5.7818]
[1747400027705,66.20264198,172.96,172.87,1.803]
[1747400027907,66.20264198,172.96,172.84,59.46]
[1747400028107,66.20264198,172.96,172.83,1.8388]
[1747400028310,5.7814,172.9,172.83,1.8388]
[1747400028507,124.6614,172.9,172.83,1.8388]
[1747400028807,118.88,172.9,172.83,1.8388]
[1747400029011,118.88,172.9,172.87,5.782]
[1747400029213,118.88,172.9,172.83,1.8388]
[1747400029917,124.6615,172.9,172.86,5.7823]
[1747400030114,118.88,172.9,172.86,5.7823]
[1747400030615,5.7817,172.89,172.86,5.7823]
[1747400033018,5.7819,172.88,172.85,5.7827]
[1747400033316,118.88,172.9,172.83,1.8388]
[1747400033717,5.7817,172.89,172.86,5.7825]
[1747400037014,5.7819,172.88,172.85,5.7827]
[1747400037824,5.7817,172.89,172.86,5.7825]
[1747400038118,118.88,172.9,172.83,1.8388]
[1747400038516,5.7819,172.88,172.85,5.7826]
[1747400038719,118.88,172.9,172.83,1.8388]
[1747400039425,118.88,172.9,172.85,5.7829]
[1747400040323,5.7821,172.88,172.85,5.7829]
[1747400040825,118.88,172.9,172.81,59.46]
[1747400041419,118.88,172.9,172.83,5.7836]
[1747400041620,118.88,172.9,172.79,61.2144]
[1747400041815,118.88,172.9,172.84,5.7831]
[1747400042023,5.7823,172.87,172.84,5.7831]
[1747400043126,5.7826,172.86,172.83,5.7834]
[1747400044516,5.7826,172.86,172.82,5.7837]
[1747400044725,5.7824,172.87,172.79,1.8144]
[1747400044918,118.88,172.9,172.79,1.8144]
[1747400045319,5.7827,172.86,172.79,1.8144]
[1747400046029,5.7827,172.86,172.82,5.7837]
[1747400046631,118.76,172.85,172.77,1.9825]
[1747400046823,118.76,172.84,172.76,73.1975316]
[1747400048126,118.76,172.84,172.75,5.7862]
[1747400048324,118.76,172.84,172.73,59.38]
[1747400050332,5.7845,172.81,172.77,5.7854]
[1747400050531,118.8,172.8,172.73,59.38]
[1747400050724,118.8,172.8,172.77,5.7853]
[1747400051335,118.8,172.8,172.78,5.785]
[1747400051629,118.8,172.88,172.77,66.18104084]
[1747400052434,124.5821,172.88,172.84,5.7832]
[1747400052634,118.8,172.88,172.77,66.18104084]
[1747400052935,6.7832477,172.83,172.72,5.7251]
[1747400053131,125.56482939,172.82,172.72,1.9747]
[1747400053338,125.56575228,172.81,172.69,59.4]
[1747400053636,125.56575228,172.81,172.67,3.7499]
[1747400053637,6.78575228,172.78,172.67,3.7499]
[1747400054032,6.78575228,172.78,172.67,1.8]
[1747400054237,6.79120524,172.74,172.6,59.4]
[1747400054440,120.6002,172.73,172.6,59.4]
[1747400054642,5.7887,172.68,172.62,5.7905]
[1747400054837,124.5687,172.68,172.62,5.7905]
[1747400055345,118.78,172.68,172.61,5.7908]
[1747400055535,118.78,172.68,172.6,59.4]
[1747400057335,59.38,172.7,172.6,59.4]
[1747400058344,5.7895,172.66,172.6,59.4]
[1747400058645,59.42,172.67,172.6,59.4]
[1747400058942,65.2089,172.67,172.6,59.4]
[1747400059643,59.42,172.67,172.6,59.4]
[1747400060747,59.42,172.67,172.64,5.7898]
[1747400061243,5.7898,172.65,172.61,5.7908]
[1747400061543,59.42,172.66,172.61,5.7908]
[1747400062145,59.42,172.66,172.62,5.7905]
[1747400062348,59.42,172.66,172.57,71.82610524]
[1747400063548,59.42,172.66,172.63,5.79]
[1747400063748,59.42,172.66,172.57,71.82610524]
[1747400064141,59.44,172.7,172.6,6.79120524]
[1747400064442,118.86,172.7,172.6,66.21120524]
[1747400064645,118.86,172.7,172.66,5.7891]
[1747400065151,118.86,172.7,172.65,5.7894]
[1747400065342,118.86,172.7,172.61,59.44]
[1747400065650,118.86,172.7,172.63,5.79]
[1747400066042,118.86,172.7,172.58,118.86]
[1747400066243,118.86,172.7,172.63,5.79]
[1747400066444,5.7886,172.68,172.58,118.86]
[1747400066747,5.7886,172.68,172.64,5.7898]
[1747400067247,118.86,172.7,172.58,118.86]
[1747400067448,59.42,172.69,172.6,6.79120524]
[1747400067851,118.86,172.7,172.6,6.79120524]
[1747400068345,118.86,172.7,172.67,5.7886]
[1747400068950,124.648,172.7,172.67,5.7886]
[1747400070249,118.86,172.7,172.68,5.7885]
[1747400070454,118.86,172.7,172.6,6.79120524]
[1747400070651,59.42,172.71,172.6,6.79120524]
[1747400071247,5.7881,172.7,172.67,5.7888]
[1747400072147,5.7883,172.69,172.66,5.7891]
[1747400072351,59.42,172.71,172.63,59.46]
[1747400072651,5.7885,172.69,172.65,5.7894]
[1747400073452,5.7885,172.69,172.66,5.7892]
[1747400074657,59.42,172.71,172.63,59.46]
[1747400074952,65.2078,172.71,172.67,5.7887]
[1747400075245,65.2078,172.71,172.63,59.46]
[1747400075450,59.42,172.71,172.63,59.46]
[1747400075753,59.46,172.72,172.64,3.8811]
[1747400076452,5.7878,172.71,172.69,5.7882]
[1747400077952,65.2473,172.72,172.69,5.7882]
[1747400078453,59.46,172.72,172.69,5.7882]
[1747400079156,65.2472,172.72,172.68,5.7884]
[1747400080054,59.46,172.72,172.69,5.7882]
[1747400080458,59.46,172.72,172.65,1.9311]
[1747400080655,59.42,172.74,172.65,1.9311]
[1747400080850,5.7867,172.74,172.71,5.7873]
[1747400081048,118.82,172.75,172.65,1.9311]
[1747400081250,507.09120524,172.81,172.66,66.21120524]
[1747400081450,254.99875178,172.77,172.67,59.4]
[1747400082357,5.7865,172.75,172.67,59.4]
[1747400083054,254.99875178,172.77,172.67,59.4]
[1747400084544,5.7864,172.75,172.67,59.4]
[1747400084748,254.99875178,172.77,172.67,59.4]
[1747400085657,5.7875,172.72,172.69,5.788]
[1747400086157,5.787,172.73,172.7,5.7879]
[1747400086550,5.787,172.73,172.67,59.4]
[1747400086752,5.7867,172.74,172.71,5.7875]
[1747400087659,5.7869,172.73,172.7,5.7877]
[1747400089162,5.7867,172.74,172.71,5.7875]
[1747400091058,5.7869,172.73,172.7,5.7878]
[1747400091465,5.7869,172.73,172.67,59.4]
[1747400092660,5.7869,172.73,172.7,5.7876]
[1747400093265,254.97875178,172.77,172.67,59.4]
[1747400094260,5.786,172.76,172.73,5.7867]
[1747400094461,254.97875178,172.77,172.73,5.7867]
[1747400094665,5.7862,172.76,172.73,5.7867]
[1747400094964,5.7862,172.76,172.74,5.7864]
[1747400095163,260.76445178,172.77,172.74,5.7864]
[1747400095665,260.76445178,172.77,172.75,5.7861]
[1747400095858,195.57875178,172.77,172.75,5.7861]
[1747400096259,59.4,172.77,172.75,5.7861]
[1747400096458,65.1856,172.77,172.74,5.7864]
[1747400097464,5.7859,172.76,172.73,5.7867]
[1747400097764,59.4,172.77,172.7,1.829]
[1747400097970,65.1857,172.77,172.7,1.829]
[1747400098169,65.1857,172.77,172.74,5.7865]
[1747400098669,59.4,172.77,172.75,5.7862]
[1747400098866,59.4,172.77,172.7,3.6307]
[1747400099074,118.78,172.8,172.71,6.79120524]
[1747400099366,59.4,172.8,172.72,59.4]
[1747400099860,65.1847,172.8,172.76,5.7856]
[1747400100165,65.1847,172.8,172.72,59.4]
[1747400100364,65.1847,172.8,172.77,5.7853]
[1747400100668,59.4,172.8,172.72,59.4]
[1747400101467,5.7853,172.78,172.72,59.4]
[1747400101669,59.4,172.8,172.72,59.4]
[1747400102370,5.7853,172.78,172.75,5.7859]
[1747400103072,5.785,172.79,172.76,5.7858]
[1747400103470,59.4,172.8,172.76,5.7858]
[1747400103774,59.4,172.8,172.74,5.7864]
[1747400104069,59.38,172.79,172.71,1.8494]
[1747400104765,5.7857,172.77,172.74,5.7865]
[1747400104960,59.38,172.79,172.71,1.8494]
[1747400105170,65.1652,172.79,172.76,5.7857]
[1747400105368,59.38,172.79,172.76,5.7857]
[1747400106174,59.38,172.79,172.71,8.64060524]
[1747400106372,59.36,172.83,172.71,8.64060524]
[1747400106573,124.5238,172.83,172.74,6.79120524]
[1747400106872,65.1438,172.83,172.75,59.38]
[1747400107771,65.1438,172.83,172.81,5.7842]
[1747400107972,65.1428,172.86,172.75,59.38]
[1747400108174,118.74,172.86,172.77,6.79120524]
[1747400108671,5.7835,172.83,172.77,6.79120524]
[1747400108870,5.7835,172.83,172.8,5.7843]
[1747400109671,5.7841,172.82,172.78,5.7849]
[1747400110277,59.36,172.86,172.75,59.38]
[1747400110574,59.36,172.85,172.75,59.38]
[1747400112376,5.7841,172.82,172.79,5.7847]
[1747400112877,5.7836,172.83,172.8,5.7845]
[1747400114274,5.7833,172.84,172.81,5.7842]
[1747400114478,59.36,172.85,172.75,59.36]
[1747400114679,59.36,172.85,172.76,3.7622]
[1747400115279,65.143,172.85,172.82,5.7837]
[1747400115479,59.36,172.86,172.76,3.7622]
[1747400115480,59.36,172.86,172.77,59.34]
[1747400115776,59.36,172.86,172.77,61.1957]
[1747400117176,5.7837,172.83,172.8,5.7842]
[1747400118476,5.7833,172.84,172.81,5.7842]
[1747400118678,59.36,172.86,172.77,61.1957]
[1747400119182,5.783,172.85,172.82,5.7837]
[1747400119385,5.783,172.85,172.77,61.1957]
[1747400119576,59.36,172.86,172.83,5.7833]
[1747400120583,5.7831,172.85,172.82,5.7838]
[1747400122099,5.7831,172.85,172.83,5.7835]
[1747400122483,65.1427,172.86,172.83,5.7835]
[1747400123882,65.1427,172.86,172.79,59.34]
[1747400123883,559.52,172.89,172.79,59.34]
[1747400124186,59.34,172.89,172.79,59.34]
[1747400124488,136.04969046,172.93,172.83,6.79120524]
[1747400124687,136.04969046,172.93,172.84,63.1568]
[1747400124885,136.04969046,172.93,172.84,65.1459]
[1747400125508,141.82999046,172.93,172.9,5.781]
[1747400125689,136.04969046,172.93,172.84,65.1459]
[1747400125993,5.7807,172.92,172.89,5.7814]
[1747400126196,136.04969046,172.93,172.84,65.1459]
[1747400126593,141.83009046,172.93,172.9,5.781]
[1747400127090,136.04969046,172.93,172.9,5.781]
[1747400127291,141.82999046,172.93,172.9,5.781]
[1747400127486,141.82999046,172.93,172.91,5.7808]
[1747400127882,59.34,172.94,172.92,5.7803]
[1747400128785,59.34,172.94,172.86,6.79120524]
[1747400128985,65.1201,172.94,172.87,59.32]
[1747400129189,65.1201,172.94,172.91,5.7807]
[1747400129991,65.1201,172.94,172.92,5.7805]
[1747400130189,59.34,172.94,172.92,5.7805]
[1747400130490,65.0997,172.95,172.93,5.7802]
[1747400131284,5.7793,172.96,172.93,5.7802]
[1747400131489,5.7793,172.96,172.88,59.32]
[1747400131490,61.177,172.99,172.89,6.79120524]
[1747400131682,59.32,173.0,172.89,6.79120524]
[1747400131883,5.7786,172.98,172.95,5.7792]
[1747400132483,118.64,173.0,172.91,59.32]
[1747400132983,118.64,173.0,172.9,1.8515]
[1747400133388,5.7801,172.94,172.91,5.7808]
[1747400133588,59.32,172.96,172.9,1.8515]
[1747400134594,5.7804,172.93,172.9,7.6327]
[1747400136893,59.32,172.96,172.9,7.6327]
[1747400136894,5.78,172.94,172.9,7.6327]
[1747400137193,59.32,172.96,172.9,7.6327]
[1747400137593,5.7802,172.94,172.9,7.6327]
[1747400137795,59.32,172.96,172.9,7.6327]
[1747400138294,59.32,172.96,172.9,1.8515]
[1747400139497,118.62,172.96,172.88,59.32]
[1747400139897,5.7805,172.93,172.89,5.7813]
[1747400140190,118.62,172.96,172.88,59.32]
[1747400140796,5.7799,172.94,172.91,5.7806]
[1747400140998,118.62,172.96,172.88,59.32]
[1747400141200,59.3,172.96,172.88,59.32]
[1747400141698,5.7797,172.95,172.92,5.7805]
[1747400142597,5.78,172.94,172.91,5.7808]
[1747400142802,59.3,172.94,172.84,59.3]
[1747400143001,59.3,172.94,172.85,5.7828]
[1747400143497,59.3,172.94,172.84,59.3]
[1747400143731,59.3,172.94,172.87,5.7819]
[1747400144620,59.3,172.94,172.84,59.3]
[1747400144919,5.7812,172.9,172.84,59.3]
[1747400145217,5.7812,172.9,172.87,5.782]
[1747400146321,5.7816,172.89,172.86,5.7825]
[1747400146520,59.3,172.92,172.84,59.3]
[1747400147901,59.3,172.92,172.83,59.3]
[1747400148095,59.3,172.92,172.81,61.2617]
[1747400148401,59.3,172.92,172.81,120.5617]
[1747400149005,5.782,172.88,172.84,5.7831]
[1747400150502,59.3,172.88,172.78,63.148]
[1747400150702,59.3,172.88,172.78,59.3]
[1747400151009,5.7842,172.81,172.78,65.0851]
[1747400151204,59.3,172.85,172.78,5.7851]
[1747400151802,59.3,172.85,172.79,5.7848]
[1747400152007,59.3,172.85,172.76,1.995]
[1747400152508,5.7838,172.83,172.79,5.7846]
[1747400152807,59.3,172.85,172.79,5.7846]
[1747400153008,5.7838,172.83,172.79,5.7846]
[1747400153309,59.3,172.85,172.79,5.7846]
[1747400154204,59.3,172.85,172.8,5.7845]
[1747400154612,5.7835,172.84,172.8,5.7845]
[1747400154811,59.3,172.85,172.79,5.7848]
[1747400155712,59.3,172.85,172.76,1.995]
[1747400156211,5.7834,172.84,172.8,5.7843]
[1747400157205,5.7836,172.83,172.8,5.7843]
[1747400159315,59.3,172.85,172.76,1.995]
[1747400159815,5.7842,172.82,172.78,5.7851]
[1747400160717,5.7842,172.82,172.79,5.7848]
[1747400160915,59.32,172.84,172.72,61.3067]
[1747400161118,59.32,172.84,172.76,5.7856]
[1747400161311,59.32,172.84,172.72,120.6267]
[1747400161713,59.32,172.84,172.74,6.79120524]
[1747400162014,5.7837,172.83,172.74,6.79120524]
[1747400162221,5.7837,172.83,172.79,5.7846]
[1747400162619,65.1032,172.84,172.74,6.79120524]
[1747400163114,5.7838,172.83,172.8,5.7844]
[1747400165824,65.1033,172.84,172.8,5.7844]
[1747400166024,59.32,172.84,172.8,5.7844]
[1747400166224,5.7836,172.83,172.8,5.7844]
[1747400166927,5.784,172.82,172.79,5.7848]
[1747400167421,5.7847,172.8,172.76,5.7858]
[1747400167725,59.32,172.81,172.73,59.3]
[1747400167915,5.7853,172.78,172.74,5.7862]
[1747400168114,59.3,172.8,172.72,1.9867]
[1747400168625,5.7855,172.77,172.74,5.7864]
[1747400168825,59.3,172.8,172.74,5.7864]
[1747400169027,59.3,172.8,172.72,1.9867]
[1747400169417,5.785,172.79,172.72,1.9867]
[1747400170431,5.7852,172.78,172.75,5.786]
[1747400170626,59.3,172.8,172.72,1.9867]
[1747400170928,5.785,172.79,172.76,5.7857]
[1747400171426,59.3,172.8,172.71,10.57580524]
[1747400171929,5.7852,172.78,172.75,5.786]
[1747400172231,5.7852,172.78,172.45,892.0]
[1747400172232,6.78591733,172.76,172.51,118.74]
[1747400172428,6.78591733,172.72,172.59,5.7913]
[1747400172723,6.79472585,172.7,172.53,63.0752]
[1747400172930,120.2627,172.69,172.54,6.79472585]
[1747400173125,6.79815953,172.66,172.54,1.851]
[1747400173328,120.5711,172.65,172.54,1.851]
[1747400173519,121.4282,172.65,172.54,1.851]
[1747400173725,118.78,172.64,172.54,1.851]
[1747400173928,118.78,172.63,172.54,1.851]
[1747400174531,5.7914,172.6,172.54,7.644]
[1747400175030,124.5914,172.6,172.54,1.851]
[1747400175232,118.8,172.6,172.52,1.8877]
[1747400175833,5.7916,172.59,172.54,5.7931]
[1747400176530,118.8,172.6,172.52,1.8877]
[1747400177130,5.7918,172.59,172.52,1.8877]
[1747400178232,5.7918,172.59,172.55,5.7928]
[1747400178625,5.7919,172.58,172.52,1.8877]